fUST/lending_fUST_20250930
["ID","MTS","AMOUNT","RATE_DAILY","PERIOD"]
[388442137,1759169449967,-2012.06,0.00023981,2]
[388442138,1759169449976,-782.14,0.00023981,2]
[388442139,1759169449985,-480.0,0.00023981,2]
[388442140,1759169449995,-480.0,0.00023981,2]
[388442141,1759169450004,-480.0,0.00023981,2]
[388442142,1759169450014,-1007.45,0.00023981,2]
[388442143,1759169450023,-617.06,0.00023981,2]
[388442144,1759169450032,-584.64,0.00023981,2]
[388442145,1759169450042,-581.59,0.00023981,2]
[388442146,1759169450051,-480.0,0.00023981,2]
[388442147,1759169450061,-764.23,0.00023981,2]
[388442148,1759169450070,-480.0,0.00023981,2]
[388442149,1759169450079,-480.0,0.00023981,2]
[388442150,1759169450088,-4512.89,0.00023981,2]
[388442151,1759169450098,-572.29,0.00023981,2]
[388442152,1759169450107,-2038.46,0.00023981,2]
[388442153,1759169450117,-480.0,0.00023981,2]
[388442154,1759169450127,-843.73,0.00023981,2]
[388442155,1759169450136,-679.83,0.00023981,2]
[388442156,1759169450146,-480.0,0.00023981,2]
[388442157,1759169450156,-505.06,0.00023981,2]
[388442158,1759169450165,-2363.06,0.00023981,2]
[388442159,1759169450175,-756.07,0.00023981,2]
[388442160,1759169450184,-480.0,0.00023981,2]
[388442161,1759169450193,-480.0,0.00023981,2]
[388442162,1759169450203,-615.45,0.00023981,2]
[388442163,1759169450213,-731.82,0.00023981,2]
[388442164,1759169450222,-480.0,0.00023981,2]
[388442165,1759169450231,-956.83,0.00023981,2]
[388442166,1759169450240,-480.0,0.00023981,2]
[388442167,1759169450249,-805.63,0.00023981,2]
[388442168,1759169450259,-5180.78,0.00023981,2]
[388442169,1759169450269,-743.6,0.00023981,2]
[388442170,1759169450278,-1723.74,0.00023981,2]
[388442171,1759169450288,-559.24,0.00023981,2]
[388442172,1759169450297,-151.0,0.00023981,7]
[388442173,1759169450306,-151.0,0.00023981,7]
[388442174,1759169450316,-151.0,0.00023981,7]
[388442175,1759169450326,-1192.02,0.00023981,2]
[388442176,1759169450336,-1206.39,0.00023981,2]
[388442177,1759169450345,-480.0,0.00023981,2]
[388442178,1759169450355,-1011.9,0.00023981,2]
[388442179,1759169450364,-151.0,0.00023981,7]
[388442180,1759169450374,-480.0,0.00023981,2]
[388442181,1759169450383,-151.0,0.00023981,7]
[388442182,1759169450393,-151.0,0.00023981,7]
[388442183,1759169450402,-480.0,0.00023981,2]
[388442184,1759169450412,-177.683661,0.00023981,7]
[388442185,1759169450422,-500.0,0.00023981,2]
[388442186,1759169450437,-151.0,0.00023981,7]
[388442187,1759169450446,-151.0,0.00023981,7]
[388442188,1759169450455,-480.0,0.00023981,2]
[388442189,1759169450465,-151.0,0.00023981,7]
[388442190,1759169450475,-151.0,0.00023981,7]
[388442191,1759169450485,-151.0,0.00023981,7]
[388442192,1759169450494,-151.0,0.00023981,7]
[388442193,1759169450505,-480.0,0.00023983,2]
[388442194,1759169450515,-480.0,0.00023983,2]
[388442195,1759169450526,-480.0,0.00023983,2]
[388442196,1759169450536,-480.0,0.00023983,2]
[388442197,1759169450545,-480.0,0.00023983,2]
[388442198,1759169450555,-480.0,0.00023983,2]
[388442199,1759169450565,-480.0,0.00023983,2]
[388442200,1759169450574,-480.0,0.00023983,2]
[388442201,1759169450583,-480.0,0.00023983,2]
[388442202,1759169450593,-480.0,0.00023983,2]
[388442203,1759169450602,-480.0,0.00023983,2]
[388442204,1759169450611,-480.0,0.00023983,2]
[388442205,1759169450620,-580.49,0.00023983,2]
[388442206,1759169450630,-480.0,0.00023983,2]
[388442207,1759169450640,-500.0,0.00023983,2]
[388442208,1759169450649,-480.0,0.00023983,2]
[388442209,1759169450659,-1129.63,0.00023983,2]
[388442210,1759169450670,-480.0,0.00023983,2]
[388442211,1759169450680,-480.0,0.00023983,2]
[388442212,1759169450689,-480.0,0.00023983,2]
[388442213,1759169450699,-244.15206638,0.00023983,2]
[388442214,1759169450708,-480.0,0.00023983,2]
[388442215,1759169450717,-1225.62,0.00023983,2]
[388442216,1759169450727,-256.37049974,0.00023983,2]
[388442217,1759169450736,-480.0,0.00023983,2]
[388442218,1759169450745,-480.0,0.00023983,2]
[388442219,1759169450755,-480.0,0.00023983,2]
[388442220,1759169450765,-502.99,0.00023983,2]
[388442221,1759169450775,-582.71,0.00023983,2]
[388442222,1759169450784,-480.0,0.00023983,2]
[388442223,1759169450794,-1003.21,0.00023983,2]
[388442224,1759169450804,-480.0,0.00023983,2]
[388442225,1759169450813,-480.0,0.00023983,2]
[388442226,1759169450822,-480.0,0.00023983,2]
[388442227,1759169450832,-480.0,0.00023983,2]
[388442228,1759169450842,-480.0,0.00023983,2]
[388442229,1759169450851,-480.0,0.00023983,2]
[388442230,1759169450860,-480.0,0.00023983,2]
[388442231,1759169450869,-523.34,0.00023983,2]
[388442232,1759169450878,-203.28054906,0.00023983,2]
[388442233,1759169450887,-480.0,0.00023983,2]
[388442234,1759169450897,-424.49584015,0.00023983,2]
[388442235,1759169450906,-480.0,0.00023983,2]
[388442236,1759169450915,-487.06,0.00023983,2]
[388442237,1759169450924,-480.0,0.00023983,2]
[388442238,1759169450933,-480.0,0.00023983,2]
[388442239,1759169450943,-480.0,0.00023983,2]
[388442240,1759169450952,-803.64,0.00023983,2]
[388442241,1759169450961,-480.0,0.00023983,2]
[388442242,1759169450970,-480.0,0.00023983,2]
[388442243,1759169450979,-480.0,0.00023983,2]
[388442244,1759169450988,-480.0,0.00023983,2]
[388442245,1759169450997,-480.0,0.00023983,2]
[388442246,1759169451006,-515.73,0.00023983,2]
[388442247,1759169451015,-488.36,0.00023983,2]
[388442248,1759169451024,-480.0,0.00023983,2]
[388442249,1759169451033,-480.0,0.00023983,2]
[388442250,1759169451042,-480.0,0.00023983,2]
[388442251,1759169451051,-480.0,0.00023983,2]
[388442252,1759169451060,-480.0,0.00023983,2]
[388442253,1759169451068,-151.0,0.00023983,7]
[388442254,1759169451077,-151.0,0.00023983,7]
[388442255,1759169451086,-151.0,0.00023983,7]
[388442256,1759169451095,-153.200272,0.00023983,7]
[388442257,1759169451104,-151.0,0.00023983,7]
[388442258,1759169451113,-625.57673,0.00023983,7]
[388442259,1759169451122,-625.57673,0.00023983,7]
[388442260,1759169451131,-625.57673,0.00023983,7]
[388442261,1759169451140,-625.57673,0.00023983,7]
[388442262,1759169451150,-225.94003019,0.00023985,2]
[388442263,1759169451159,-500.0,0.00023985,2]
[388442264,1759169451169,-500.0,0.00023985,2]
[388442265,1759169451179,-500.0,0.00023985,2]
[388442266,1759169451188,-500.0,0.00023985,2]
[388442267,1759169451197,-500.0,0.00023985,2]
[388442268,1759169451207,-154.48522388,0.00023985,2]
[388442269,1759169451216,-800.0,0.00023985,2]
[388442270,1759169451225,-370000.0,0.00023988,2]
[388442271,1759169451234,-151.0,0.00023988,7]
[388442272,1759169451243,-151.0,0.00023988,7]
[388442273,1759169451252,-151.0,0.00023988,7]
[388442274,1759169451262,-151.0,0.00023988,7]
[388442275,1759169451273,-151.0,0.00023988,7]
[388442276,1759169451283,-151.0,0.00023988,7]
[388442277,1759169451292,-151.0,0.00023988,7]
[388442278,1759169451302,-151.0,0.00023988,7]
[388442279,1759169451311,-151.0,0.00023988,7]
[388442280,1759169451321,-151.0,0.00023988,7]
[388442281,1759169451330,-151.0,0.00023988,7]
[388442282,1759169451340,-151.0,0.00023988,7]
[388442283,1759169451349,-151.0,0.00023988,7]
[388442284,1759169451359,-151.0,0.00023988,7]
[388442285,1759169451368,-151.0,0.00023988,7]
[388442286,1759169451378,-153.871709,0.00023988,7]
[388442287,1759169451387,-180.758138,0.00023988,7]
[388442288,1759169451396,-151.0,0.00023988,7]
[388442289,1759169451405,-180.758138,0.00023988,7]
[388442290,1759169451415,-180.758138,0.00023988,7]
[388442291,1759169451424,-180.758138,0.00023988,7]
[388442292,1759169451438,-151.0,0.00023988,7]
[388442293,1759169451447,-151.0,0.00023988,7]
[388442294,1759169451456,-151.0,0.00023988,7]
[388442295,1759169451467,-151.0,0.00023988,7]
[388442296,1759169451476,-151.0,0.00023988,7]
[388442297,1759169451485,-151.0,0.00023988,7]
[388442298,1759169451494,-151.0,0.00023988,7]
[388442299,1759169451504,-151.0,0.00023988,7]
[388442300,1759169451514,-151.0,0.00023988,7]
[388442301,1759169451524,-249.303497,0.00023988,7]
[388442302,1759169451534,-151.0,0.00023988,7]
[388442303,1759169451543,-249.303497,0.00023988,7]
[388442304,1759169451553,-151.0,0.00023988,7]
[388442305,1759169451607,-249.303497,0.00023988,7]
[388442306,1759169451617,-249.303497,0.00023988,7]
[388442307,1759169451626,-151.0,0.00023988,7]
[388442308,1759169451635,-151.0,0.00023988,7]
[388442309,1759169451645,-151.0,0.00023988,7]
[388442310,1759169451654,-151.0,0.00023988,7]
[388442311,1759169451663,-625.57673,0.00023988,7]
[388442312,1759169451673,-151.0,0.00023988,7]
[388442313,1759169451682,-625.57673,0.00023988,7]
[388442314,1759169451691,-625.57673,0.00023988,7]
[388442315,1759169451701,-625.57673,0.00023988,7]
[388442316,1759169451711,-151.0,0.00023988,7]
[388442317,1759169451722,-151.0,0.00023988,7]
[388442318,1759169451731,-151.0,0.00023988,7]
[388442319,1759169451740,-151.0,0.00023988,7]
[388442320,1759169451750,-244.43081,0.00023988,7]
[388442321,1759169451759,-151.0,0.00023988,7]
[388442322,1759169451768,-151.0,0.00023988,7]
[388442323,1759169451778,-151.0,0.00023988,7]
[388442324,1759169451787,-401.230282,0.00023988,7]
[388442325,1759169451797,-151.0,0.00023988,7]
[388442326,1759169451806,-401.230282,0.00023988,7]
[388442327,1759169451815,-401.230282,0.00023988,7]
[388442328,1759169451825,-401.230282,0.00023988,7]
[388442329,1759169451834,-298.945,0.00023988,7]
[388442330,1759169451843,-151.0,0.00023988,7]
[388442331,1759169451852,-151.0,0.00023988,7]
[388442332,1759169451861,-151.0,0.00023988,7]
[388442333,1759169451871,-151.0,0.00023988,7]
[388442334,1759169451880,-151.0,0.00023988,7]
[388442335,1759169451889,-169.358262,0.00023988,7]
[388442336,1759169451898,-169.358262,0.00023988,7]
[388442337,1759169451909,-169.358262,0.00023988,7]
[388442338,1759169451920,-169.358262,0.00023988,7]
[388442339,1759169451930,-151.0,0.00023988,7]
[388442340,1759169451939,-151.0,0.00023988,7]
[388442341,1759169451948,-151.0,0.00023988,7]
[388442342,1759169451957,-151.0,0.00023988,7]
[388442343,1759169451967,-151.0,0.00023988,7]
[388442344,1759169451976,-358.349785,0.00023988,7]
[388442345,1759169451985,-358.349785,0.00023988,7]
[388442346,1759169451995,-151.0,0.00023988,7]
[388442347,1759169452004,-358.349785,0.00023988,7]
[388442348,1759169452013,-151.0,0.00023988,7]
[388442349,1759169452022,-358.349785,0.00023988,7]
[388442350,1759169452032,-151.0,0.00023988,7]
[388442351,1759169452042,-151.0,0.00023988,7]
[388442352,1759169452051,-151.0,0.00023988,7]
[388442353,1759169452062,-151.0,0.00023988,7]
[388442354,1759169452071,-151.0,0.00023988,7]
[388442355,1759169452080,-772.759636,0.00023988,7]
[388442356,1759169452090,-151.0,0.00023988,7]
[388442357,1759169452100,-772.759636,0.00023988,7]
[388442358,1759169452109,-772.759636,0.00023988,7]
[388442359,1759169452118,-772.759636,0.00023988,7]
[388442360,1759169452128,-151.0,0.00023988,7]
[388442361,1759169452137,-151.0,0.00023988,7]
[388442362,1759169452147,-151.0,0.00023988,7]
[388442363,1759169452156,-151.0,0.00023988,7]
[388442364,1759169452166,-151.0,0.00023988,7]
[388442365,1759169452175,-151.0,0.00023988,7]
[388442366,1759169452183,-151.0,0.00023988,7]
[388442367,1759169452193,-151.0,0.00023988,7]
[388442368,1759169452202,-151.0,0.00023988,7]
[388442369,1759169452211,-151.0,0.00023988,7]
[388442370,1759169452220,-151.0,0.00023988,7]
[388442371,1759169452230,-151.0,0.00023988,7]
[388442372,1759169452239,-151.0,0.00023988,7]
[388442373,1759169452249,-151.0,0.00023988,7]
[388442374,1759169452258,-151.0,0.00023988,7]
[388442375,1759169452267,-151.0,0.00023988,7]
[388442376,1759169452277,-151.0,0.00023988,7]
[388442377,1759169452286,-224.313998,0.00023988,7]
[388442378,1759169452295,-151.0,0.00023988,7]
[388442379,1759169452304,-151.0,0.00023988,7]
[388442380,1759169452314,-151.0,0.00023988,7]
[388442381,1759169452323,-369.361182,0.00023988,7]
[388442382,1759169452332,-369.361182,0.00023988,7]
[388442383,1759169452342,-369.361182,0.00023988,7]
[388442384,1759169452351,-369.361182,0.00023988,7]
[388442385,1759169452362,-2264.347528,0.00023988,7]
[388442386,1759169452371,-2264.347528,0.00023988,7]
[388442387,1759169452381,-2264.347528,0.00023988,7]
[388442388,1759169452390,-2264.347528,0.00023988,7]
[388442389,1759169452399,-10000.0,0.00023988,7]
[388442390,1759169452408,-10000.0,0.00023988,7]
[388442391,1759169452418,-151.0,0.00023988,7]
[388442392,1759169452431,-10000.0,0.00023988,7]
[388442393,1759169452440,-10000.0,0.00023988,7]
[388442394,1759169452450,-10000.0,0.00023988,7]
[388442395,1759169452459,-151.0,0.00023988,7]
[388442396,1759169452470,-151.0,0.00023988,7]
[388442397,1759169452479,-151.0,0.00023988,7]
[388442398,1759169452488,-151.0,0.00023988,7]
[388442399,1759169452498,-156.050985,0.00023988,7]
[388442400,1759169452508,-297.861742,0.00023988,7]
[388442401,1759169452517,-2409.2671656,0.00024,20]
[388442402,1759169452527,-233.87608454,0.00024,7]
[388442403,1759169452536,-1000.0,0.00024,2]
[388442404,1759169452545,-4340.3587398,0.00024,2]
[388442405,1759169452554,-192.819073,0.00024,2]
[388442406,1759169452563,-166.0,0.00024,3]
[388442407,1759169452572,-814.0,0.00024003,2]
[388442408,1759169452583,-14492.19296079,0.00024013,2]
[388442409,1759169452594,-1000.0,0.00024021,2]
[388442410,1759169452604,-1000.0,0.00024021,2]
[388442411,1759169452614,-1000.0,0.00024021,2]
[388442412,1759169452625,-1000.0,0.00024021,2]
[388442413,1759169452635,-1000.0,0.00024021,2]
[388442414,1759169452644,-1000.0,0.00024021,2]
[388442415,1759169452653,-1000.0,0.00024021,2]
[388442416,1759169452663,-1000.0,0.00024021,2]
[388442417,1759169452671,-638.54063705,0.00024021,2]
[388442418,1759169452909,-361.45936295,0.00024021,2]
[388442419,1759169452919,-1009.41821845,0.00024021,2]
[388442420,1759169452928,-1000.0,0.00024021,2]
[388442421,1759169452938,-1000.0,0.00024021,2]
[388442422,1759169452947,-1000.0,0.00024021,2]
[388442423,1759169452956,-500.0,0.00024047,2]
[388442424,1759169452965,-151.0,0.00024047,2]
[388442425,1759169452975,-500.0,0.00024047,2]
[388442426,1759169452984,-242.46671906,0.00024047,2]
[388442427,1759169452996,-500.0,0.00024047,2]
[388442428,1759169453005,-151.0,0.00024047,2]
[388442429,1759169453015,-500.0,0.00024047,2]
[388442430,1759169453025,-151.0,0.00024047,2]
[388442431,1759169453035,-151.0,0.00024047,2]
[388442432,1759169453045,-151.0,0.00024047,2]
[388442433,1759169453055,-1502.0,0.00024047,2]
[388442434,1759169453064,-500.0,0.00024047,2]
[388442435,1759169453074,-151.0,0.00024047,2]
[388442436,1759169453083,-500.0,0.00024047,2]
[388442437,1759169453093,-500.0,0.00024047,2]
[388442438,1759169453102,-151.55455188,0.00024047,2]
[388442439,1759169453112,-151.0,0.00024047,2]
[388442440,1759169453122,-151.45944655,0.00024047,2]
[388442441,1759169453132,-500.0,0.00024047,2]
[388442442,1759169453141,-151.0,0.00024047,2]
[388442443,1759169453151,-151.0,0.00024047,2]
[388442444,1759169453160,-151.0,0.00024047,2]
[388442445,1759169453170,-151.0,0.00024047,2]
[388442446,1759169453179,-500.0,0.00024047,2]
[388442447,1759169453189,-814.0,0.00024057,2]
[388442448,1759169453199,-168.0,0.00024101,2]
[388442449,1759169453209,-200.0,0.00024109,2]
[388442450,1759169453218,-200.0,0.00024109,2]
[388442451,1759169453228,-200.0,0.00024109,2]
[388442452,1759169453238,-162.0,0.00024133,3]
[388442453,1759169453248,-176.30180835,0.00024133,3]
[388442454,1759169453259,-166.0,0.00024133,3]
[388442455,1759169453269,-642.87,0.00024156,2]
[388442456,1759169453281,-4282.21853313,0.00024157,2]
[388442457,1759169453294,-7822.78344331,0.00024157,2]
[388442458,1759169453305,-600.0,0.00024179,20]
[388442459,1759169453315,-160.0,0.00024228,5]
[388442460,1759169453325,-480.0,0.00024246,2]
[388442461,1759169453336,-201.0317241,0.00024246,2]
[388442462,1759169453350,-519.91,0.00024246,2]
[388442463,1759169453360,-480.0,0.00024246,2]
[388442464,1759169453370,-480.0,0.00024247,2]
[388442465,1759169453380,-480.0,0.00024247,2]
[388442466,1759169453390,-480.0,0.00024247,2]
[388442467,1759169453400,-2103.21960218,0.00024247,2]
[388442468,1759169453423,-538.39,0.00023433,2]
[388442469,1759169453437,-495.15039782,0.00024247,2]
[388442470,1759169453447,-480.0,0.00024247,2]
[388442471,1759169453457,-480.0,0.00024247,2]
[388442472,1759169453467,-2020.98916443,0.00024247,2]
[388442473,1759169454242,-741.23,0.00023413,3]
[388442474,1759169454253,-500.0,0.00023419,2]
[388442475,1759169454264,-500.0,0.00023419,2]
[388442476,1759169454276,-480.0,0.00023424,2]
[388442477,1759169454287,-480.0,0.00023433,2]
[388442478,1759169454297,-480.0,0.00023698,2]
[388442479,1759169454308,-538.39,0.00023707,2]
[388442480,1759169454318,-480.0,0.00023707,2]
[388442481,1759169454329,-480.0,0.00023972,2]
[388442482,1759169454339,-538.39,0.00023981,2]
[388442483,1759169454348,-151.0,0.00023981,7]
[388442484,1759169454358,-151.0,0.00023988,7]
[388442485,1759169454368,-480.0,0.00024246,2]
[388442486,1759169454378,-47.94083557,0.00024247,2]
[388442487,1759169454388,-976.09,0.00024247,2]
[388442488,1759169454398,-1123.0,0.00024247,2]
[388442489,1759169454408,-480.0,0.00024247,2]
[388442490,1759169454418,-480.0,0.00024247,2]
[388442491,1759169454429,-480.0,0.00024247,2]
[388442492,1759169454441,-497.85,0.00024247,2]
[388442493,1759169454452,-692.44,0.00024247,2]
[388442494,1759169454462,-1617.79,0.00024247,2]
[388442495,1759169454472,-702.4,0.00024247,2]
[388442496,1759169454483,-480.0,0.00024247,2]
[388442497,1759169454493,-2146.27,0.00024247,2]
[388442498,1759169454504,-480.0,0.00024247,2]
[388442499,1759169454514,-538.09,0.00024247,2]
[388442500,1759169454525,-676.75,0.00024247,2]
[388442501,1759169454535,-781.63,0.00024247,2]
[388442502,1759169454545,-480.0,0.00024247,2]
[388442503,1759169454554,-596.77,0.00024247,2]
[388442504,1759169454564,-480.0,0.00024247,2]
[388442505,1759169454574,-683.17,0.00024247,2]
[388442506,1759169454584,-1383.81,0.00024247,2]
[388442507,1759169454593,-579.14,0.00024247,2]
[388442508,1759169454603,-414.84916442,0.00024247,2]
[388442509,1759169455078,-160.0,0.00019799,2]
[388442510,1759169455089,-500.0,0.00023419,2]
[388442511,1759169455270,-500.0,0.00023419,2]
[388442512,1759169455283,-500.0,0.00023419,2]
[388442513,1759169455294,-480.0,0.00023424,2]
[388442514,1759169455304,-480.0,0.00023425,2]
[388442515,1759169455313,-480.0,0.00023433,2]
[388442516,1759169455323,-480.0,0.00023698,2]
[388442517,1759169455333,-480.0,0.00023699,2]
[388442518,1759169455342,-480.0,0.00023972,2]
[388442519,1759169455352,-480.0,0.00023973,2]
[388442520,1759169455361,-199.780282,0.00023981,7]
[388442521,1759169455371,-199.780282,0.00023981,7]
[388442522,1759169455381,-199.780282,0.00023988,7]
[388442523,1759169455391,-199.780282,0.00023988,7]
[388442524,1759169455400,-577.63083558,0.00024247,2]
[388442525,1759169455410,-480.0,0.00024247,2]
[388442526,1759169455420,-480.0,0.00024247,2]
[388442527,1759169455432,-2204.38,0.00024247,2]
[388442528,1759169455442,-1274.66,0.00024247,2]
[388442529,1759169455452,-3570.8,0.00024247,2]
[388442530,1759169455462,-1968.14,0.00024247,2]
[388442531,1759169455471,-480.0,0.00024247,2]
[388442532,1759169455482,-480.0,0.00024247,2]
[388442533,1759169455491,-606.88,0.00024247,2]
[388442534,1759169455501,-480.0,0.00024247,2]
[388442535,1759169455513,-480.0,0.00024247,2]
[388442536,1759169455524,-1366.64,0.00024247,2]
[388442537,1759169455534,-564.26,0.00024247,2]
[388442538,1759169455544,-480.0,0.00024247,2]
[388442539,1759169455554,-3763.3,0.00024247,2]
[388442540,1759169455563,-480.0,0.00024247,2]
[388442541,1759169455573,-940.24,0.00024247,2]
[388442542,1759169455583,-8900.67,0.00024247,2]
[388442543,1759169455592,-480.0,0.00024247,2]
[388442544,1759169455601,-480.0,0.00024247,2]
[388442545,1759169455611,-1088.53,0.00024247,2]
[388442546,1759169455620,-867.34,0.00024247,2]
[388442547,1759169455629,-480.0,0.00024247,2]
[388442548,1759169455638,-480.0,0.00024247,2]
[388442549,1759169455648,-480.0,0.00024248,2]
[388442550,1759169455658,-480.0,0.00024248,2]
[388442551,1759169455667,-480.0,0.00024248,2]
[388442552,1759169455675,-250.07953361,0.00024249,2]
[388442553,1759169455685,-480.0,0.00024249,2]
[388442554,1759169455694,-348.82471088,0.00024251,2]
[388442555,1759169455703,-488.29,0.00024251,2]
[388442556,1759169455713,-155.0,0.00024252,2]
[388442557,1759169455723,-480.0,0.00024252,2]
[388442558,1759169455732,-480.0,0.00024252,2]
[388442559,1759169455741,-480.0,0.00024252,2]
[388442560,1759169455750,-480.0,0.00024252,2]
[388442561,1759169455759,-374.10118781,0.00024253,2]
[388442562,1759169461484,-232.61845327,0.00019999,2]
[388442563,1759169461505,-113.71908004,0.00019999,2]
[388442565,1759169475967,-180.0,0.00019999,2]
[388442566,1759169477597,-206.28091996,0.00019999,2]
[388442567,1759169477620,-1.77372636,0.00019999,2]
[388442568,1759169481707,-281.52,0.00019999,2]
[388442569,1759169485086,-202.06685742,0.00019999,2]
[388442570,1759169487021,-146.39944941,0.00019999,2]
[388442571,1759169487043,-123.07648922,0.00019999,2]
[388442572,1759169490259,-81.52384049,0.00019999,2]
[388442573,1759169496800,-300.0,0.00023418,2]
[388442574,1759169496841,-500.0,0.00023419,2]
[388442575,1759169496882,-500.0,0.00023419,2]
[388442576,1759169496916,-500.0,0.00023419,2]
[388442577,1759169496954,-500.0,0.00023419,2]
[388442578,1759169496995,-500.0,0.00023419,2]
[388442579,1759169497030,-500.0,0.00023419,2]
[388442580,1759169497067,-500.0,0.00023419,2]
[388442581,1759169497104,-500.0,0.00023419,2]
[388442582,1759169497138,-151.0,0.00023419,2]
[388442583,1759169497176,-480.0,0.00023424,2]
[388442584,1759169497371,-480.0,0.00023424,2]
[388442585,1759169497404,-1046.03,0.00023424,2]
[388442586,1759169497437,-480.0,0.00023424,2]
[388442587,1759169497475,-480.0,0.00023425,2]
[388442588,1759169497511,-480.0,0.00023425,2]
[388442589,1759169497545,-784.55,0.00023425,2]
[388442590,1759169497579,-867.63,0.00023425,2]
[388442592,1759169506641,-168.0,0.00023252,2]
[388442593,1759169506672,-410.55409294,0.00023424,2]
[388442594,1759169506701,-1827.52,0.00023425,2]
[388442595,1759169506732,-480.0,0.00023425,2]
[388442596,1759169506762,-480.0,0.00023425,2]
[388442597,1759169506788,-1091.53,0.00023425,2]
[388442598,1759169506815,-480.0,0.00023425,2]
[388442599,1759169516657,-168.0,0.00022521,2]
[388442600,1759169516685,-168.0,0.00022798,2]
[388442601,1759169516713,-934.33,0.00023425,2]
[388442602,1759169516739,-480.0,0.00023425,2]
[388442603,1759169516768,-482.76,0.00023425,2]
[388442604,1759169516795,-480.0,0.00023425,2]
[388442605,1759169516822,-833.41,0.00023425,2]
[388442606,1759169516849,-984.03,0.00023425,2]
[388442607,1759169526709,-300.0,0.00023424,2]
[388442608,1759169526738,-4022.27,0.00023425,2]
[388442609,1759169526764,-603.41,0.00023425,2]
[388442610,1759169543209,-178.97959773,0.00021171,2]
[388442611,1759169545901,-174.9,0.00021171,2]
[388442612,1759169546644,-146.12040227,0.00021171,2]
[388442613,1759169546672,-500.0,0.00022541,2]
[388442614,1759169546700,-300.0,0.000234,2]
[388442615,1759169546725,-480.0,0.00023424,2]
[388442616,1759169546753,-1200.0,0.00023424,2]
[388442617,1759169546780,-480.0,0.00023424,2]
[388442618,1759169547000,-972.2,0.00023425,2]
[388442619,1759169547030,-82.81919546,0.00023425,2]
[388442620,1759169556928,-480.0,0.00023424,2]
[388442621,1759169556957,-500.0,0.00023424,2]
[388442622,1759169556985,-352.39969157,0.00023424,2]
[388442623,1759169557014,-330.97033622,0.00023424,2]
[388442624,1759169557043,-205.81831523,0.00023424,2]
[388442625,1759169557398,-4719.61004208,0.00023425,2]
[388442626,1759169557419,-10000.01,0.00023425,2]
[388442627,1759169557503,-10000.01,0.00023425,2]
[388442628,1759169557829,-10000.01,0.00023425,2]
[388442629,1759169566717,-480.0,0.00023424,2]
[388442630,1759169566754,-9040.01,0.00023425,2]
[388442631,1759169566863,-3759.66004208,0.00023425,2]
[388442632,1759169566892,-2480.68991584,0.00023425,2]
[388442633,1759169586751,-500.0,0.00023424,2]
[388442634,1759169586781,-480.0,0.00023424,2]
[388442635,1759169586811,-547.41,0.00023424,2]
[388442636,1759169586839,-300.0,0.00023424,2]
[388442637,1759169586870,-694.08,0.00023424,2]
[388442638,1759169586902,-160.0,0.00023425,2]